bitfinex/quotes_SOLUSD_20251009
["timestamp","ask_amount","ask_price","bid_price","bid_amount"]
[1760005240574,134.8,221.72,221.69,0.67]
[1760005240766,166.42,221.72,221.69,0.67]
[1760005242171,166.42,221.72,221.68,6.65578109]
[1760005242373,166.42,221.72,221.69,0.67]
[1760005243087,166.42,221.72,221.69,5.18080038]
[1760005243479,166.42,221.72,221.7,0.67]
[1760005243684,166.42,221.72,221.71,0.67]
[1760005244491,134.8,221.72,221.71,0.67]
[1760005244787,134.8,221.72,221.71,5.18039646]
[1760005245377,134.8,221.72,221.71,7.32532015]
[1760005245889,134.8,221.72,221.71,7.36532015]
[1760005248468,31.8,221.77,221.71,18.6413113]
[1760005248670,0.2,221.77,221.73,2.14492369]
[1760005248866,0.2,221.77,221.74,2.85492369]
[1760005249266,0.2,221.77,221.74,0.71]
[1760005249470,0.2,221.77,221.74,2.85492369]
[1760005250399,0.2,221.77,221.75,0.71]
[1760005250590,0.2,221.77,221.74,6.65461588]
[1760005250772,0.2,221.77,221.76,0.71]
[1760005251289,0.2,221.77,221.74,6.65461588]
[1760005251495,2.14492369,221.75,221.67,0.71]
[1760005251791,32.16,221.76,221.67,0.71]
[1760005251792,32.16,221.74,221.67,0.71]
[1760005251994,34.30492369,221.74,221.67,2.85492369]
[1760005252486,34.30492369,221.74,221.68,4.51100685]
[1760005252676,32.16,221.74,221.68,4.51100685]
[1760005252879,32.16,221.74,221.68,6.65593054]
[1760005253082,34.30492369,221.74,221.68,4.51100685]
[1760005253796,32.16,221.74,221.68,4.51100685]
[1760005254102,31.6,221.75,221.7,2.14492369]
[1760005254294,31.6,221.75,221.7,2.85492369]
[1760005254484,31.6,221.75,221.71,4.51039646]
[1760005254878,32.16,221.75,221.71,4.51039646]
[1760005255888,31.6,221.75,221.72,2.80492369]
[1760005256204,31.6,221.76,221.74,2.14492369]
[1760005256518,0.2,221.77,221.74,2.14492369]
[1760005256727,0.2,221.77,221.74,2.80492369]
[1760005257001,0.2,221.77,221.75,5.16957859]
[1760005257174,0.2,221.77,221.75,4.50957859]
[1760005259609,0.2,221.77,221.73,4.50986217]
[1760005259912,0.2,221.77,221.73,5.16986217]
[1760005260076,0.2,221.77,221.73,7.31478586]
[1760005260272,0.2,221.77,221.73,5.16986217]
[1760005260478,0.2,221.77,221.73,7.31478586]
[1760005261488,0.2,221.77,221.74,2.14492369]
[1760005262596,0.2,221.77,221.74,6.65460664]
[1760005262782,0.2,221.77,221.74,5.16968295]
[1760005264832,0.2,221.77,221.75,2.80492369]
[1760005265429,0.2,221.77,221.73,0.66]
[1760005265619,0.56,221.76,221.72,2.14492369]
[1760005266403,0.56,221.76,221.72,0.66]
[1760005266404,31.6,221.76,221.72,0.66]
[1760005266817,31.6,221.76,221.72,5.17007027]
[1760005267909,31.6,221.76,221.73,5.16985128]
[1760005269507,31.6,221.76,221.74,0.66]
[1760005270110,31.6,221.76,221.75,0.66]
[1760005270730,0.2,221.77,221.75,0.66]
[1760005270923,0.2,221.77,221.75,2.80492369]
[1760005271232,0.2,221.77,221.76,2.80492369]
[1760005272228,0.2,221.77,221.76,7.31430319]
[1760005272926,0.2,221.77,221.76,5.1693795]
[1760005275318,0.2,221.77,221.76,7.31430319]
[1760005275811,0.2,221.77,221.76,0.66]
[1760005276013,0.2,221.77,221.76,2.80492369]
[1760005276323,0.2,221.77,221.76,0.66]
[1760005277404,0.2,221.77,221.76,5.1693795]
[1760005280513,0.2,221.77,221.76,7.31430319]
[1760005281119,0.2,221.77,221.76,18.1907784]
[1760005281509,0.2,221.77,221.76,20.33570209]
[1760005282435,0.2,221.77,221.76,18.1907784]
[1760005282941,0.2,221.77,221.76,49.7707784]
[1760005286205,1e-08,221.77,221.76,51.91570209]
[1760005286409,166.38,221.85,221.76,51.91570209]
[1760005286410,31.58,221.85,221.8,10.87647521]
[1760005286724,32.14,221.88,221.83,2.14492369]
[1760005286914,0.56,221.87,221.84,4.50775333]
[1760005287308,7.73150343,221.89,221.85,2.86492369]
[1760005287718,7.73150343,221.89,221.85,2.14492369]
[1760005288052,7.73150343,221.89,221.86,2.14492369]
[1760005288536,31.58,221.9,221.86,2.86492369]
[1760005288928,31.58,221.9,221.87,4.50714382]
[1760005289117,32.14,221.9,221.87,4.50714382]
[1760005289313,31.58,221.9,221.87,4.50714382]
[1760005291058,32.14,221.9,221.87,4.50714382]
[1760005291225,32.14,221.9,221.86,6.65227016]
[1760005291814,31.58,221.9,221.86,7.37227016]
[1760005292030,31.58,221.9,221.86,5.22734647]
[1760005292215,31.58,221.9,221.86,7.37227016]
[1760005293210,0.56,221.89,221.84,2.14492369]
[1760005293412,32.14,221.9,221.84,2.86492369]
[1760005294027,36.64660368,221.9,221.84,2.14492369]
[1760005294226,36.64660368,221.9,221.81,25.30836301]
[1760005294227,2.14492369,221.88,221.81,25.30836301]
[1760005294431,32.12,221.87,221.81,28.1732867]
[1760005294627,32.12,221.87,221.81,7.3732867]
[1760005295217,32.12,221.87,221.83,4.50795654]
[1760005295513,0.56,221.86,221.81,2.86492369]
[1760005295717,0.56,221.85,221.81,2.86492369]
[1760005295917,0.56,221.85,221.81,2.14492369]
[1760005296328,32.12,221.84,221.71,22.55129981]
[1760005296532,2.14492369,221.81,221.75,4.50958286]
[1760005296717,0.56,221.8,221.75,4.50958286]
[1760005296917,0.56,221.79,221.74,4.50976416]
[1760005297138,0.56,221.79,221.74,5.22976416]
[1760005298222,33.70492369,221.81,221.75,0.72]
[1760005298434,31.56,221.81,221.75,2.86492369]
[1760005299220,31.56,221.81,221.76,4.5093795]
[1760005299423,32.12,221.81,221.76,4.5093795]
[1760005300933,32.12,221.81,221.76,5.2293795]
[1760005301442,139.86796771,221.83,221.77,5.22909992]
[1760005301643,31.56,221.8,221.77,5.22909992]
[1760005301846,31.56,221.81,221.77,7.37402361]
[1760005302027,31.56,221.81,221.77,5.22909992]
[1760005303344,32.12,221.81,221.77,4.50909992]
[1760005303551,32.12,221.81,221.76,4.5093795]
[1760005304053,32.12,221.81,221.76,5.2293795]
[1760005305143,32.12,221.81,221.76,4.5093795]
[1760005305342,31.56,221.81,221.77,0.69]
[1760005305749,32.12,221.81,221.78,4.50897285]
[1760005306123,31.56,221.81,221.78,4.50897285]
[1760005306526,32.12,221.81,221.77,4.50916925]
[1760005307544,0.56,221.8,221.76,4.5093795]
[1760005307729,0.56,221.79,221.76,4.5093795]
[1760005307931,0.56,221.78,221.74,4.50978623]
[1760005308138,2.14492369,221.8,221.74,5.19978623]
[1760005308326,2.70492369,221.8,221.74,5.19978623]
[1760005308730,0.56,221.8,221.74,5.19978623]
[1760005309137,0.56,221.79,221.74,5.19978623]
[1760005309336,0.56,221.78,221.74,4.50978623]
[1760005309846,32.12,221.78,221.74,4.50978623]
[1760005310057,31.56,221.78,221.74,5.19978623]
[1760005311441,32.12,221.78,221.74,5.19978623]
[1760005311748,32.12,221.78,221.74,4.50978623]
[1760005312744,31.56,221.78,221.74,4.50978623]
[1760005312946,31.56,221.78,221.74,5.19978623]
[1760005314657,32.12,221.78,221.73,4.50998962]
[1760005314856,32.12,221.78,221.73,5.19998962]
[1760005315157,32.12,221.78,221.73,4.50998962]
[1760005315343,31.56,221.78,221.74,0.67]
[1760005315842,32.12,221.78,221.75,4.50958286]
[1760005316039,31.56,221.78,221.75,4.50958286]
[1760005316247,32.12,221.78,221.75,4.50958286]
[1760005316453,0.56,221.77,221.71,32.7455649]
[1760005316651,0.56,221.76,221.72,4.51019303]
[1760005316849,0.56,221.75,221.72,4.51019303]
[1760005318260,32.12,221.75,221.71,15.78596136]
[1760005318835,32.12,221.75,221.7,5.18056067]
[1760005319035,0.56,221.74,221.68,6.65576835]
[1760005319255,2.70492369,221.73,221.66,2.14492369]
[1760005319456,2.14492369,221.71,221.65,4.51161741]
[1760005319660,2.14492369,221.69,221.63,4.51200847]
[1760005319867,32.12,221.68,221.63,4.51200847]
[1760005320046,0.56,221.67,221.63,4.51200847]
[1760005320241,0.56,221.67,221.62,4.51222813]
[1760005320442,0.56,221.67,221.62,5.18222813]
[1760005321468,0.56,221.66,221.6,0.67]
[1760005321653,31.56,221.65,221.6,0.67]
[1760005322048,32.12,221.65,221.6,0.67]
[1760005322978,32.12,221.65,221.58,0.67]
[1760005322979,2.70492369,221.64,221.58,0.67]
[1760005324267,7.21681295,221.64,221.54,2.24492369]
[1760005324479,2.14492369,221.62,221.55,4.5136538]
[1760005324643,31.56,221.61,221.55,5.1836538]
[1760005326156,1.37693322,221.59,221.54,0.1]
[1760005326459,0.56,221.58,221.54,0.1]
[1760005326774,31.58,221.57,221.54,0.1]
[1760005326970,0.56,221.56,221.54,0.1]
[1760005327158,0.56,221.55,221.54,0.1]
[1760005327358,1.93693322,221.55,221.54,0.1]
[1760005328480,1.37693322,221.55,221.54,0.1]
[1760005328777,1.93693322,221.55,221.54,0.1]
[1760005329282,0.56,221.55,221.54,0.1]
[1760005329467,1.93693322,221.55,221.54,0.1]
[1760005329773,31.58,221.57,221.54,0.1]
[1760005329960,31.58,221.56,221.54,0.1]
[1760005330756,32.14,221.56,221.54,0.1]
[1760005330977,33.51693322,221.56,221.54,0.1]
[1760005331758,38.03042173,221.56,221.54,0.1]
[1760005334086,31.58,221.55,221.54,0.1]
[1760005334291,31.58,221.55,221.54,0.77]
[1760005334595,31.58,221.55,221.54,0.1]
[1760005336874,38.03058702,221.55,221.54,0.1]
[1760005337687,5.89049297,221.56,221.54,0.1]
[1760005337981,31.58,221.55,221.54,0.1]
[1760005338154,32.95693322,221.55,221.54,0.1]
[1760005340059,136.17693322,221.56,221.54,0.1]
[1760005340275,31.58,221.55,221.54,0.1]
[1760005340480,31.58,221.55,221.54,0.77]
[1760005340667,31.58,221.55,221.54,0.1]
[1760005345494,31.58,221.55,221.54,0.78]
[1760005346191,31.58,221.55,221.54,0.1]
[1760005346981,37.47058702,221.55,221.54,0.1]
[1760005348495,38.03058702,221.55,221.54,0.1]
[1760005351795,1.37693322,221.55,221.54,0.1]
[1760005352095,32.95693322,221.55,221.54,0.1]
[1760005352886,1.37693322,221.55,221.54,0.1]
[1760005353194,32.95693322,221.55,221.54,0.78]
[1760005354284,32.95693322,221.55,221.54,0.1]
[1760005355682,32.95693322,221.55,221.54,0.78]
[1760005356683,11.8419933,221.6,221.54,0.78]
[1760005356684,1.37693322,221.58,221.54,0.78]
[1760005357009,31.58,221.57,221.55,0.68]
[1760005357303,166.38,221.57,221.55,0.68]
[1760005357480,167.75693322,221.57,221.55,0.68]
[1760005358805,172.27030779,221.57,221.55,0.68]
[1760005359202,172.27030779,221.57,221.56,0.68]
[1760005359203,134.8,221.57,221.56,0.68]
[1760005359392,31.58,221.57,221.56,0.68]
[1760005360506,31.58,221.57,221.54,0.1]
[1760005360808,31.58,221.57,221.55,0.68]
[1760005360991,36.0932517,221.57,221.55,0.68]
[1760005361504,37.47018492,221.57,221.55,0.68]
[1760005362500,32.95693322,221.57,221.55,0.68]
[1760005362809,37.47027298,221.57,221.55,0.68]
[1760005363307,3.01836323,221.56,221.55,0.68]
[1760005366310,137.81836323,221.56,221.55,0.68]
[1760005367303,137.81836323,221.56,221.54,0.1]
[1760005367603,34.59836323,221.55,221.54,0.79]
[1760005370618,3.01836323,221.55,221.54,6.68079076]
[1760005370806,3.03037265,221.59,221.54,6.68079076]
[1760005370999,3.03037265,221.58,221.57,1.37693322]
[1760005371419,3.03050354,221.58,221.57,2.06693322]
[1760005371818,31.58,221.59,221.57,2.06693322]
[1760005372022,1.37693322,221.64,221.58,0.69]
[1760005372211,34.61064241,221.63,221.58,0.69]
[1760005372403,3.03064241,221.62,221.59,4.51283902]
[1760005372605,34.61064241,221.61,221.6,0.69]
[1760005374322,31.58,221.61,221.6,0.69]
[1760005376321,31.58,221.61,221.6,5.20263537]
[1760005379336,31.58,221.61,221.6,5.20263537]
[1760005380033,31.58,221.62,221.6,5.20263537]
[1760005380228,31.58,221.62,221.61,0.67]
[1760005381416,31.58,221.62,221.61,5.18243174]
[1760005382047,31.58,221.65,221.61,6.55936496]
[1760005382349,31.58,221.65,221.62,0.67]
[1760005382819,134.8,221.67,221.62,0.67]
[1760005383132,31.56,221.66,221.63,1.37693322]
[1760005383335,31.56,221.66,221.64,0.67]
[1760005383706,31.56,221.66,221.65,4.51161741]
[1760005383912,31.56,221.68,221.65,5.18161741]
[1760005384223,31.56,221.68,221.66,0.67]
[1760005385824,31.56,221.68,221.64,4.51182097]
[1760005386024,31.56,221.68,221.64,5.18182097]
[1760005386236,31.56,221.68,221.65,0.67]
[1760005386425,31.56,221.68,221.66,0.67]
[1760005390829,31.56,221.68,221.66,5.18136361]
[1760005391031,31.56,221.68,221.67,0.67]
[1760005392237,134.8,221.71,221.67,0.67]
[1760005392426,31.56,221.7,221.67,0.67]
[1760005392627,31.56,221.7,221.67,2.81978685]
[1760005392937,2.14978685,221.77,221.7,4.5105999]
[1760005393147,31.56,221.76,221.71,0.67]
[1760005393443,31.56,221.76,221.72,0.67]
[1760005393847,31.56,221.76,221.73,0.67]
[1760005394239,2.14978685,221.77,221.7,15.78709967]
[1760005394431,31.56,221.76,221.74,0.67]
[1760005394769,137.50978685,221.79,221.71,2.14978685]
[1760005394770,136.94978685,221.79,221.75,0.67]
[1760005394918,31.56,221.78,221.75,5.17941634]
[1760005395118,2.14978685,221.76,221.7,21.47]
[1760005395335,31.56,221.75,221.7,21.47]
[1760005395534,2.14978685,221.73,221.69,4.51080337]
[1760005395755,2.14978685,221.71,221.65,11.27522187]
[1760005395921,32.12,221.7,221.65,11.27522187]
[1760005396247,34.26978685,221.7,221.65,11.94522187]
[1760005396750,2.14978685,221.66,221.65,11.27522187]
[1760005396939,34.26978685,221.66,221.65,11.27522187]
[1760005397326,34.26978685,221.66,221.62,4.51220157]
[1760005397527,2.14978685,221.65,221.62,4.51220157]
[1760005397922,2.14978685,221.65,221.6,5.18244898]
[1760005398123,33.70978685,221.66,221.6,5.18244898]
[1760005399340,33.70978685,221.66,221.61,0.67]
[1760005399652,33.70978685,221.66,221.62,0.67]
[1760005400150,2.14978685,221.66,221.62,0.67]
[1760005400452,31.54,221.65,221.6,15.79403742]
[1760005400654,31.54,221.65,221.61,0.67]
[1760005401246,31.54,221.65,221.62,4.51222813]
[1760005401762,33.68978685,221.65,221.6,4.51251085]
[1760005402056,0.56,221.64,221.6,4.51251085]
[1760005402253,2.70978685,221.64,221.6,4.51251085]
[1760005402833,2.70978685,221.64,221.59,4.51283902]
[1760005403027,2.14978685,221.64,221.6,0.67]
[1760005403353,33.68978685,221.65,221.6,0.67]
[1760005403557,34.24978685,221.65,221.6,0.67]
[1760005404242,34.24978685,221.65,221.6,5.18253209]
[1760005405042,0.56,221.64,221.6,4.51253209]
[1760005405442,33.68978685,221.65,221.6,5.23253209]
[1760005405840,33.68978685,221.65,221.6,4.51253209]
[1760005406044,33.68978685,221.65,221.6,5.23253209]
[1760005406451,31.54,221.65,221.59,4.51283902]
[1760005406653,31.54,221.65,221.6,0.72]
[1760005406850,32.1,221.65,221.6,0.72]
[1760005407053,34.24978685,221.65,221.6,0.72]
[1760005407641,34.24978685,221.65,221.6,5.2325105]
[1760005408054,2.14978685,221.63,221.59,4.51282488]
[1760005408253,32.12,221.62,221.57,4.51324637]
[1760005408641,0.56,221.61,221.57,4.51324637]
[1760005408841,0.56,221.6,221.55,5.2335358]
[1760005409068,31.54,221.59,221.55,5.2335358]
[1760005409240,31.54,221.59,221.56,0.72]
[1760005409746,31.54,221.59,221.57,4.51324637]
[1760005410065,31.54,221.59,221.58,0.72]
[1760005411060,31.54,221.59,221.57,4.51324637]
[1760005412541,31.54,221.59,221.55,4.5136538]
[1760005412741,31.54,221.59,221.54,0.1]
[1760005413072,31.54,221.59,221.55,0.72]
[1760005413754,31.54,221.59,221.55,5.23346333]
[1760005414341,31.54,221.59,221.55,4.51346333]
[1760005414542,0.56,221.58,221.54,0.1]
[1760005414758,0.56,221.57,221.54,0.1]
[1760005414970,31.54,221.56,221.54,0.1]
[1760005415662,31.54,221.56,221.54,4.6137955]
[1760005416166,134.8,221.62,221.55,2.86978685]
[1760005416369,31.56,221.61,221.55,2.86978685]
[1760005417043,32.12,221.61,221.55,2.86978685]
[1760005417366,31.56,221.61,221.55,2.86978685]
[1760005417546,0.56,221.6,221.55,2.86978685]
[1760005417966,31.56,221.61,221.56,0.72]
[1760005418270,31.56,221.61,221.57,0.72]
[1760005418747,31.56,221.61,221.55,0.72]
[1760005418748,32.12,221.61,221.55,0.72]
[1760005418947,32.12,221.61,221.56,2.14978685]
[1760005419169,32.12,221.61,221.55,2.86978685]
[1760005421566,0.56,221.61,221.56,4.51345008]
[1760005421866,31.56,221.6,221.56,5.23345008]
[1760005422370,32.12,221.6,221.56,4.51345008]
[1760005422779,31.56,221.6,221.57,0.72]
[1760005423652,31.56,221.6,221.57,5.23315156]
[1760005423848,31.56,221.6,221.57,0.72]
[1760005424150,31.56,221.6,221.56,4.51342988]
[1760005424350,31.56,221.6,221.56,5.18342988]
[1760005425150,31.56,221.6,221.57,0.67]
[1760005425375,31.56,221.6,221.57,5.18316661]
[1760005425572,136.94978685,221.62,221.58,0.67]
[1760005425573,31.56,221.59,221.58,0.67]
[1760005426274,31.56,221.59,221.57,4.51316661]
[1760005427556,135.36,221.62,221.57,4.51316661]
[1760005427757,32.12,221.61,221.57,4.51316661]
[1760005429957,31.56,221.61,221.56,0.67]
[1760005430281,34.26978685,221.61,221.56,0.67]
[1760005431378,32.12,221.61,221.56,0.67]
[1760005431762,32.12,221.61,221.56,2.81978685]
[1760005431974,0.56,221.61,221.57,4.51324637]
[1760005432180,31.54,221.6,221.57,4.51324637]
[1760005438381,31.54,221.6,221.56,5.17345008]
[1760005442275,32.1,221.6,221.56,5.17345008]
[1760005442803,31.54,221.6,221.56,5.17345008]
[1760005444000,31.54,221.6,221.56,4.51345008]
[1760005444001,32.1,221.6,221.56,4.51345008]
[1760005444164,32.1,221.6,221.56,5.17345008]
[1760005444680,31.54,221.6,221.56,5.17345008]
[1760005445091,143.65046398,221.67,221.59,2.14978685]
[1760005445388,35.13237087,221.66,221.6,0.66]
[1760005445691,3.03237087,221.65,221.6,0.66]
[1760005445993,3.03237087,221.65,221.61,0.66]
[1760005446208,31.54,221.64,221.61,2.80978685]
[1760005447364,31.54,221.64,221.61,0.66]
[1760005447565,31.54,221.64,221.61,2.80978685]
[1760005448295,31.54,221.64,221.61,5.17240244]
[1760005448995,32.1,221.64,221.59,2.14978685]
[1760005449192,32.1,221.64,221.6,0.66]
[1760005449371,31.54,221.64,221.6,0.66]
[1760005450179,31.54,221.64,221.61,0.66]
[1760005451116,8.29046398,221.67,221.61,2.03644947]
[1760005451396,8.29046398,221.67,221.59,15.79493658]
[1760005451397,31.54,221.66,221.62,2.03644947]
[1760005451574,31.54,221.66,221.63,0.66]
[1760005452810,31.54,221.66,221.63,5.17189458]
[1760005452986,31.54,221.66,221.64,0.66]
[1760005453187,31.54,221.66,221.63,4.51189458]
[1760005454098,31.54,221.66,221.63,0.66]
[1760005455007,31.54,221.66,221.64,4.51182097]
[1760005457410,1.93644947,221.65,221.58,0.66]
[1760005457595,31.54,221.64,221.58,4.51304269]
[1760005457909,1.93644947,221.63,221.57,4.51320869]
[1760005458116,32.1,221.62,221.57,4.51320869]
[1760005458300,0.56,221.61,221.57,4.51320869]
[1760005458494,1.37644947,221.61,221.57,4.51320869]
[1760005458697,0.56,221.6,221.55,5.17354868]
[1760005458902,32.1,221.59,221.54,0.1]
[1760005459092,31.54,221.59,221.54,0.1]
[1760005459289,20.8,221.63,221.54,15.89837515]
[1760005459513,134.8,221.66,221.54,15.89837515]
[1760005459514,31.54,221.62,221.56,1.37644947]
[1760005459809,0.56,221.64,221.57,0.66]
[1760005460014,31.54,221.63,221.57,0.66]
[1760005460609,139.87141973,221.66,221.57,0.66]
[1760005460811,35.94820926,221.65,221.57,0.66]
[1760005461011,3.03175979,221.64,221.57,0.66]
[1760005461201,3.03175979,221.64,221.58,4.51304269]
[1760005461517,3.03175979,221.64,221.58,5.17304269]
[1760005461711,3.59175979,221.64,221.58,5.17304269]
[1760005464823,3.59175979,221.64,221.56,12.65983729]
[1760005465009,3.03175979,221.64,221.57,16.45636231]
[1760005465206,3.03175979,221.64,221.58,0.69]
[1760005467101,3.03175979,221.64,221.59,4.51283902]
[1760005467612,3.03175979,221.64,221.6,0.69]
[1760005469216,3.03175979,221.64,221.6,4.51253853]
[1760005469217,3.59175979,221.64,221.6,4.51253853]
[1760005469520,3.59175979,221.64,221.54,0.1]
[1760005469521,1.93644947,221.63,221.58,0.69]
[1760005469697,31.52,221.62,221.58,0.69]
[1760005471393,31.52,221.62,221.59,4.51283902]
[1760005471998,1.93644947,221.63,221.59,4.51283902]
[1760005472205,31.52,221.62,221.59,4.51283902]
[1760005472814,31.52,221.62,221.58,0.69]
[1760005474195,31.52,221.62,221.59,4.51283902]
[1760005475018,31.52,221.62,221.59,5.20283902]
[1760005475500,31.52,221.62,221.59,4.51283902]
[1760005475691,31.52,221.62,221.54,0.1]
[1760005475898,0.56,221.61,221.54,2.16644947]
[1760005476094,0.56,221.61,221.55,5.2036538]
[1760005476324,1.37644947,221.59,221.54,4.6138556]
[1760005476526,32.08,221.58,221.54,4.6138556]
[1760005477315,32.08,221.58,221.54,5.3038556]
[1760005477499,31.52,221.58,221.54,5.3038556]
[1760005478517,31.52,221.58,221.55,0.69]
[1760005480830,31.52,221.58,221.55,5.20362059]
[1760005487117,31.52,221.58,221.55,4.51362059]
[1760005487321,31.52,221.58,221.55,5.20362059]
[1760005488409,31.52,221.58,221.55,4.51362059]
[1760005488609,32.89644947,221.58,221.55,4.51362059]
[1760005488917,0.56,221.57,221.54,0.1]
[1760005489235,1.37644947,221.55,221.54,0.1]
[1760005489543,33.45644947,221.55,221.54,0.1]
[1760005490017,36.48324694,221.55,221.54,0.1]
[1760005490426,33.45644947,221.55,221.54,0.1]
[1760005491320,37.82125029,221.55,221.54,0.1]
[1760005491724,33.30759649,221.55,221.54,0.1]
[1760005493133,32.74759649,221.55,221.54,0.1]
[1760005497029,33.30759649,221.55,221.54,0.1]
[1760005497339,37.82125029,221.55,221.54,0.1]
[1760005497643,37.41010327,221.55,221.54,0.1]
[1760005498023,37.97010327,221.55,221.54,0.1]
[1760005499032,37.41010327,221.55,221.54,0.1]
[1760005505446,37.97010327,221.55,221.54,0.1]
[1760005505649,39.34655274,221.55,221.54,0.1]
[1760005505820,39.34655274,221.55,221.5,1e-08]
[1760005505821,1.37644947,221.51,221.5,1e-08]
[1760005506020,32.89644947,221.51,221.5,1e-08]
[1760005506317,33.35644947,221.51,221.5,1e-08]
[1760005506540,37.87091834,221.51,221.5,1e-08]
[1760005506718,40.89399658,221.51,221.5,1e-08]
[1760005506913,51.77047179,221.51,221.5,1e-08]
[1760005507162,31.67647521,221.47,221.43,0.1]
[1760005507447,22.17644947,221.44,221.43,0.1]
[1760005507633,53.69644947,221.44,221.43,0.1]
[1760005507947,54.15644947,221.44,221.43,0.1]
[1760005508654,58.67234542,221.44,221.43,0.1]
[1760005509026,63.29004361,221.44,221.43,0.1]
[1760005511748,64.66649308,221.44,221.43,0.1]
[1760005512127,66.22597494,221.44,221.43,0.1]
[1760005512432,77.10245015,221.44,221.43,0.1]
[1760005514125,80.71478966,221.44,221.43,0.1]
[1760005515048,83.724518,221.44,221.43,0.1]
[1760005516223,83.724518,221.44,221.43,1e-08]
[1760005516858,20.8,221.4,221.27,1.65976967]
[1760005517034,2.1561904,221.34,221.25,22.60934072]
[1760005517243,31.54,221.33,221.25,24.76553112]
[1760005517454,31.54,221.32,221.26,2.1561904]
[1760005517834,166.34,221.32,221.24,15.81955528]
[1760005518030,168.4961904,221.32,221.25,2.1561904]
[1760005518349,20.8,221.29,221.22,13.57128316]
[1760005518540,31.54,221.28,221.19,2.1561904]
[1760005518857,2.1561904,221.25,221.2,0.69]
[1760005519038,31.64,221.24,221.21,0.69]
[1760005519239,31.64,221.24,221.22,0.69]
[1760005520241,2.1561904,221.23,221.19,0.69]
[1760005520453,2.1561904,221.21,221.19,0.69]
[1760005520657,31.64,221.2,221.19,0.69]
[1760005520958,2.1561904,221.26,221.19,2.8461904]
[1760005521163,31.66,221.25,221.17,0.69]
[1760005521466,2.1561904,221.22,221.17,0.69]
[1760005521642,31.68,221.21,221.18,0.69]
[1760005521846,31.68,221.2,221.19,0.69]
[1760005522359,13.5761964,221.28,221.19,0.69]
[1760005522545,2.1561904,221.25,221.19,0.69]
[1760005522865,31.68,221.24,221.19,0.69]
[1760005523047,31.7,221.23,221.2,0.69]
[1760005523242,31.72,221.22,221.2,0.69]
[1760005524261,31.74,221.22,221.2,0.69]
[1760005524558,2.1561904,221.25,221.18,2.1561904]
[1760005524767,31.76,221.24,221.19,0.69]
[1760005524942,31.76,221.24,221.2,0.69]
[1760005525638,31.76,221.24,221.21,5.19052479]
[1760005526158,33.9161904,221.24,221.16,0.67]
[1760005526340,33.9161904,221.24,221.16,2.8261904]
[1760005526751,33.9161904,221.24,221.16,0.67]
[1760005526949,2.1561904,221.22,221.16,0.67]
[1760005527147,33.9161904,221.21,221.15,4.52177677]
[1760005527350,2.1561904,221.2,221.09,17.4084022]
[1760005527578,31.76,221.21,221.09,17.4084022]
[1760005527579,2.1561904,221.1,221.09,17.4084022]
[1760005527784,31.88,221.1,221.09,17.4084022]
[1760005527982,31.9,221.1,221.09,17.4084022]
[1760005528362,34.0561904,221.1,221.09,17.4084022]
[1760005530472,2.1561904,221.1,221.09,17.4084022]
[1760005530668,34.0361904,221.1,221.09,18.0784022]
[1760005530872,2.1561904,221.11,221.09,22.6014097]
[1760005531069,20.8,221.14,221.1,0.67]